bitfinex/quotes_SOLUSD_20240727
["timestamp","ask_amount","ask_price","bid_price","bid_amount"]
[1722117230969,22.0128,186.23,186.11,1.41422906]
[1722117231673,15.5043,186.23,186.11,1.41422906]
[1722117231881,1.34278633,186.26,186.11,1.41422906]
[1722117232567,5.63778633,186.26,186.11,1.41422906]
[1722117233968,1.34278633,186.26,186.11,1.41422906]
[1722117234574,44.5472,186.27,186.12,16.5273]
[1722117234783,21.6372,186.27,186.13,46.41405164]
[1722117239579,15.2926,186.27,186.13,46.41405164]
[1722117241092,1.34258845,186.3,186.14,20.0]
[1722117241407,5.97693322,186.29,186.15,46.07402657]
[1722117241612,4.6344,186.29,186.15,46.07402657]
[1722117242672,4.6344,186.29,186.16,6.404]
[1722117243005,4.2944,186.29,186.17,46.07394995]
[1722117243178,5.63683743,186.29,186.17,46.07394995]
[1722117243496,5.63683743,186.29,186.17,45.0]
[1722117243803,5.63683743,186.29,186.17,46.07402212]
[1722117243972,1.34243743,186.29,186.16,6.404]
[1722117244175,22.57,186.26,186.12,22.9313]
[1722117244389,4.2957,186.23,186.12,22.9313]
[1722117244589,46.68286297,186.25,186.12,22.9313]
[1722117244590,1.34286304,186.22,186.12,22.9313]
[1722117245714,1.34290026,186.21,186.12,22.9313]
[1722117245881,1.34290162,186.2,186.12,22.9313]
[1722117246701,5.63854372,186.24,186.12,22.9313]
[1722117246874,1.68295685,186.23,186.12,22.9313]
[1722117247299,5.97875685,186.23,186.12,22.9313]
[1722117247480,45.89015685,186.23,186.07,22.9313]
[1722117247683,4.2964,186.2,186.07,22.9313]
[1722117247888,5.97994863,186.19,186.07,22.9313]
[1722117248080,5.80994863,186.19,186.07,22.9313]
[1722117248289,0.17,186.18,186.07,22.9313]
[1722117248585,1.5133556,186.18,186.07,22.9313]
[1722117248798,0.17,186.17,186.07,22.9313]
[1722117249106,1.51335445,186.17,186.07,22.9313]
[1722117252582,1.51335445,186.17,186.03,16.5412]
[1722117252893,1.51335445,186.17,186.04,65.34]
[1722117259984,1.51335445,186.17,186.04,65.0]
[1722117260384,1.51335445,186.17,186.04,64.5]
[1722117274721,21.6372,186.23,186.08,22.57]
[1722117274898,22.98022075,186.23,186.09,66.0744166]
[1722117275833,22.98022075,186.23,186.09,65.0]
[1722117276324,0.34,186.22,186.09,65.0]
[1722117276717,4.636,186.22,186.09,45.0]
[1722117277127,0.34,186.22,186.1,1.07441764]
[1722117277326,21.6372,186.23,186.11,1.07433342]
[1722117277532,21.6372,186.23,186.11,1.41433342]
[1722117277736,22.98002008,186.23,186.11,45.0]
[1722117289021,1.34282008,186.23,186.12,16.6358]
[1722117289246,6.4112,186.22,186.13,45.0]
[1722117292336,6.4112,186.22,186.1,20.0]
[1722117292534,6.4112,186.22,186.11,45.0]
[1722117292752,6.4112,186.22,186.09,20.17]
[1722117292753,6.4112,186.22,186.1,45.0]
[1722117293128,6.4112,186.22,186.1,46.07433392]
[1722117293333,6.4112,186.22,186.11,1.07433392]
[1722117294958,6.4112,186.22,186.1,45.0]
[1722117295884,10.7072,186.22,186.09,20.0]
[1722117296041,61.76142028,186.21,186.07,5.62321664]
[1722117296233,4.2967,186.19,186.07,5.62321664]
[1722117296428,19.7148,186.21,186.07,5.12321664]
[1722117296746,5.63968641,186.2,186.07,5.12321664]
[1722117297050,0.34,186.19,186.07,5.12321664]
[1722117297242,1.3432084,186.18,186.07,5.12321664]
[1722117297449,1.34321119,186.17,186.07,5.12321664]
[1722117298151,1.34321119,186.17,186.08,45.0]
[1722117298348,1.51321606,186.19,186.08,45.0]
[1722117298653,1.34321606,186.19,186.08,45.0]
[1722117300545,1.34321606,186.19,186.07,5.12321664]
[1722117305468,0.34,186.18,186.07,5.12321664]
[1722117305653,20.7179972,186.21,186.07,5.12321664]
[1722117305837,0.34,186.2,186.07,6.19773764]
[1722117306038,1.68315125,186.2,186.07,5.12321664]
[1722117306669,0.17,186.2,186.08,45.0]
[1722117307465,18.55956736,186.21,186.09,1.07449845]
[1722117307634,17.21641491,186.21,186.09,1.07449845]
[1722117307837,18.55951214,186.21,186.09,1.07449845]
[1722117308244,18.55951214,186.21,186.08,45.0]
[1722117308566,17.21641491,186.21,186.08,45.95069843]
[1722117310360,15.0785,186.21,186.09,0.17]
[1722117310566,15.0785,186.21,186.09,21.29034128]
[1722117310765,15.0785,186.21,186.1,45.0]
[1722117311341,15.0785,186.21,186.11,0.95038628]
[1722117312447,6.4112,186.22,186.11,0.95038628]
[1722117312966,4.2955,186.24,186.11,0.95038628]
[1722117313739,4.2957,186.23,186.1,60.8331]
[1722117314555,4.2957,186.23,186.11,0.95016661]
[1722117314742,4.2955,186.24,186.11,0.95016661]
[1722117314945,4.6353,186.25,186.11,0.95016661]
[1722117315143,4.6353,186.25,186.11,20.95016661]
[1722117315368,4.6353,186.25,186.12,45.0]
[1722117315574,10.8796,186.26,186.13,1.28960571]
[1722117315952,4.2953,186.25,186.13,0.34]
[1722117316149,1.34268693,186.24,186.13,0.17]
[1722117316354,4.2953,186.25,186.13,0.34]
[1722117316651,4.2953,186.25,186.13,1.28972775]
[1722117321451,4.295,186.26,186.13,1.28972775]
[1722117321675,4.295,186.26,186.14,6.6033]
[1722117321972,0.34,186.25,186.14,6.6033]
[1722117322151,4.2958,186.23,186.14,6.6033]
[1722117322353,1.34282206,186.22,186.14,6.6033]
[1722117323390,1.34275243,186.24,186.14,6.6033]
[1722117324857,4.2953,186.25,186.14,6.6033]
[1722117325269,5.6377237,186.26,186.14,6.6033]
[1722117325471,28.20744853,186.28,186.15,45.9496269]
[1722117325674,28.20744853,186.28,186.15,45.0]
[1722117326280,4.2948,186.27,186.15,45.0]
[1722117326578,4.2948,186.27,186.15,45.94952393]
[1722117326772,4.2948,186.27,186.16,15.8331]
[1722117327158,1.34264853,186.28,186.16,15.8331]
[1722117327359,10.74459651,186.35,186.17,52.89282221]
[1722117327659,4.2932,186.34,186.19,15.8331]
[1722117327875,7.92709154,186.35,186.2,66.28844147]
[1722117328178,7.92709154,186.35,186.21,0.94841593]
[1722117328355,5.63549154,186.35,186.21,0.94841593]
[1722117328769,5.63549154,186.35,186.22,22.4364]
[1722117328970,28.20484336,186.36,186.23,45.94825144]
[1722117329171,22.57,186.36,186.23,45.94819897]
[1722117329376,3.53408411,186.38,186.24,0.17]
[1722117329591,4.2927,186.37,186.24,0.17]
[1722117330169,4.2927,186.37,186.24,1.11790092]
[1722117330376,4.2927,186.36,186.24,1.11790092]
[1722117330577,4.2925,186.37,186.24,1.11790092]
[1722117331270,5.63411272,186.39,186.24,21.11790092]
[1722117331463,16.1023,186.4,186.25,61.4772]
[1722117331668,4.292,186.39,186.27,6.4998]
[1722117331868,4.292,186.39,186.28,45.0]
[1722117332460,4.2923,186.38,186.28,45.0]
[1722117332691,4.2923,186.38,186.28,45.94742721]
[1722117332866,4.292,186.39,186.28,45.94742721]
[1722117333064,1.34168969,186.4,186.28,45.0]
[1722117333408,4.2923,186.38,186.28,45.94743001]
[1722117333600,4.2923,186.38,186.28,45.0]
[1722117335090,22.57,186.42,186.29,17.25462836]
[1722117335091,24.71280268,186.42,186.29,17.25462836]
[1722117335293,0.8088155,186.43,186.3,45.0]
[1722117335596,0.8088155,186.43,186.3,45.94691162]
[1722117335768,0.8088155,186.43,186.33,16.3072]
[1722117336176,0.8088155,186.43,186.33,17.25381315]
[1722117336386,0.8088155,186.43,186.34,45.0]
[1722117338672,0.8088155,186.43,186.35,0.94627281]
[1722117338872,0.8088155,186.43,186.34,45.0]
[1722117338873,0.8088155,186.43,186.36,0.94627279]
[1722117339069,0.8088155,186.43,186.34,45.0]
[1722117339269,0.8088155,186.43,186.38,16.3072]
[1722117339573,0.8088155,186.43,186.39,7.44554754]
[1722117339771,0.8088155,186.43,186.39,6.4998]
[1722117339987,0.8088155,186.43,186.4,45.0]
[1722117340190,0.8088155,186.43,186.39,6.4998]
[1722117340372,0.8088155,186.43,186.4,45.0]
[1722117341889,0.8088155,186.43,186.39,6.4998]
[1722117342994,0.8088155,186.43,186.38,16.3072]
[1722117344398,5.1000155,186.43,186.38,16.3072]
[1722117344571,5.1000155,186.43,186.35,6.4998]
[1722117344572,2.15017753,186.43,186.35,6.4998]
[1722117345082,1.34140821,186.42,186.35,6.4998]
[1722117345280,0.8088155,186.43,186.35,6.4998]
[1722117347375,1.34136507,186.42,186.35,6.4998]
[1722117347803,0.8088155,186.43,186.35,6.4998]
[1722117348487,4.2916,186.42,186.35,6.4998]
[1722117349085,1.34139295,186.41,186.34,16.3072]
[1722117349284,4.2927,186.37,186.3,6.4998]
[1722117349583,1.34166553,186.36,186.3,6.4998]
[1722117350179,4.2923,186.38,186.3,6.4998]
[1722117350508,4.2928,186.36,186.3,6.4998]
[1722117350691,1.34174226,186.35,186.3,6.4998]
[1722117350996,4.2923,186.38,186.3,6.4998]
[1722117352317,1.34173386,186.37,186.3,6.4998]
[1722117353117,4.293,186.35,186.29,16.3072]
[1722117353427,1.34174828,186.37,186.25,6.3825]
[1722117353428,4.2936,186.32,186.25,6.3825]
[1722117353710,1.34209554,186.31,186.24,16.1189]
[1722117354018,5.63599554,186.31,186.24,16.1189]
[1722117354515,1.34209554,186.31,186.24,16.1189]
[1722117354716,1.34225199,186.3,186.24,16.1189]
[1722117354913,1.34224783,186.29,186.24,16.1189]
[1722117355709,1.34224783,186.29,186.19,6.3825]
[1722117355891,1.34224783,186.29,186.19,22.5014]
[1722117356093,5.63664783,186.29,186.19,22.5014]
[1722117356314,1.34241917,186.28,186.19,22.5014]
[1722117358199,5.63711917,186.28,186.19,22.5014]
[1722117358395,1.34257436,186.27,186.19,16.1189]
[1722117358597,1.34263968,186.26,186.15,16.1189]
[1722117359324,4.2949,186.27,186.15,16.1189]
[1722117359497,1.68263985,186.29,186.15,16.1189]
[1722117359691,4.2947,186.28,186.15,16.1189]
[1722117360094,1.34257354,186.27,186.15,16.1189]
[1722117360301,1.34257354,186.27,186.16,45.0]
[1722117360504,4.2947,186.28,186.16,45.0]
[1722117360818,1.34257257,186.27,186.16,45.0]
[1722117361615,5.97687247,186.29,186.16,45.0]
[1722117362210,21.9202,186.3,186.17,0.94930764]
[1722117362412,21.9202,186.3,186.18,1.11896317]
[1722117362613,26.2144,186.3,186.18,1.11896317]
[1722117362918,26.2144,186.3,186.18,0.17]
[1722117363110,4.2946,186.28,186.17,0.34]
[1722117363314,1.34240935,186.27,186.17,0.34]
[1722117363697,4.2943,186.29,186.17,0.34]
[1722117364228,5.637008,186.28,186.17,0.34]
[1722117364522,21.9202,186.3,186.17,0.34]
[1722117364523,26.2145,186.3,186.17,0.34]
[1722117364728,26.2145,186.3,186.18,0.94880511]
[1722117365090,26.2145,186.3,186.17,0.34]
[1722117365310,5.63670896,186.29,186.17,0.34]
[1722117365621,22.57,186.31,186.18,0.94887345]
[1722117365795,4.2941,186.3,186.18,0.94887345]
[1722117365997,4.2942,186.3,186.19,0.34]
[1722117366201,4.2946,186.28,186.17,0.17]
[1722117366507,1.3424423,186.27,186.16,45.0]
[1722117367122,1.34244051,186.26,186.16,45.0]
[1722117368309,1.34244285,186.27,186.16,45.0]
[1722117368914,4.2946,186.28,186.16,45.0]
[1722117370522,1.34243338,186.33,186.17,0.94911055]
[1722117370732,15.6968,186.34,186.19,6.029]
[1722117371027,6.40928392,186.37,186.21,15.3079]
[1722117371236,6.40928392,186.37,186.22,1.28788276]
[1722117371521,40.06679509,186.38,186.22,66.28788276]
[1722117371721,4.2925,186.37,186.22,66.28788276]
[1722117371936,4.2925,186.37,186.23,6.029]
[1722117372124,4.2925,186.37,186.24,66.28772202]
[1722117372521,7.79285006,186.39,186.25,15.3079]
[1722117372833,4.2922,186.39,186.26,66.2873123]
[1722117373020,28.20350062,186.41,186.27,0.94738756]
[1722117373432,4.2919,186.4,186.26,66.28717776]
[1722117373641,4.2919,186.4,186.27,0.94723498]
[1722117374029,1.34165046,186.39,186.26,65.34]
[1722117374413,4.2919,186.4,186.27,0.94723478]
[1722117374816,26.8616,186.41,186.28,0.34]
[1722117375022,4.2918,186.4,186.28,0.34]
[1722117375334,1.34165001,186.42,186.28,0.34]
[1722117375335,4.2916,186.41,186.29,6.029]
[1722117375639,0.8088155,186.43,186.31,15.3079]
[1722117375826,0.8088155,186.43,186.32,65.94665952]
[1722117376027,0.8088155,186.43,186.32,66.28665952]
[1722117376335,0.8088155,186.43,186.33,0.94635937]
[1722117376536,0.8088155,186.43,186.35,6.029]
[1722117376733,0.8088155,186.43,186.36,45.0]
[1722117379016,0.8088155,186.43,186.37,15.3079]
[1722117382424,0.8088155,186.43,186.38,45.0]
[1722117396165,0.8088155,186.43,186.39,0.94530236]
[1722117397834,0.8088155,186.43,186.38,45.0]
[1722117398246,0.8088155,186.43,186.38,45.94529698]
[1722117399754,0.8088155,186.43,186.38,45.0]
[1722117401758,0.8088155,186.43,186.39,0.9452919]
[1722117403353,0.8088155,186.43,186.38,45.0]
[1722117408263,0.8088155,186.43,186.39,0.34]
[1722117414945,0.8088155,186.43,186.41,6.6632]
[1722117415150,0.8088155,186.43,186.42,45.0]
[1722117417548,17.09399126,186.61,186.42,61.88929395]
[1722117417857,26.857,186.61,186.43,21.28394038]
[1722117418061,26.857,186.61,186.44,45.0]
[1722117418263,22.57,186.61,186.45,21.28361946]
[1722117418439,26.857,186.61,186.47,15.9444]
[1722117418640,26.857,186.61,186.48,1.28356752]
[1722117418838,26.857,186.61,186.49,0.94356932]
[1722117419466,4.2872,186.6,186.49,0.94356932]
[1722117419670,30.18040763,186.62,186.49,0.94356932]
[1722117419843,5.0956155,186.62,186.5,0.34]
[1722117420171,0.8088155,186.62,186.51,15.9444]
[1722117420348,0.8088155,186.62,186.52,45.34]
[1722117420536,0.8088155,186.62,186.53,20.0]
[1722117420741,0.8088155,186.62,186.54,46.28262533]
[1722117420951,0.8088155,186.62,186.55,7.60585122]
[1722117421159,0.8088155,186.62,186.56,45.0]
[1722117421357,0.8088155,186.62,186.55,6.6632]
[1722117422265,0.8088155,186.62,186.56,45.0]
[1722117425772,0.8088155,186.62,186.57,0.94222668]
[1722117426373,0.8088155,186.62,186.58,0.94222614]
[1722117426676,0.8088155,186.62,186.56,45.0]
[1722117430147,0.8088155,186.62,186.57,1.11249228]
[1722117430572,0.8088155,186.62,186.56,45.0]
[1722117436459,0.8088155,186.62,186.57,0.94249227]
[1722117436671,0.8088155,186.62,186.58,0.94222361]
[1722117436870,0.8088155,186.62,186.56,45.0]
[1722117437780,0.8088155,186.62,186.57,0.94228695]
[1722117438982,0.8088155,186.62,186.58,0.94229374]
[1722117439286,0.8088155,186.62,186.56,45.0]
[1722117439983,0.8088155,186.62,186.57,0.94229336]
[1722117440279,0.8088155,186.62,186.58,1.11200826]
[1722117440482,0.8088155,186.62,186.58,46.11200826]
[1722117440965,0.8088155,186.62,186.59,0.17]
[1722117441291,0.8088155,186.62,186.59,1.1118048]
[1722117442361,0.8088155,186.62,186.6,0.17]
[1722117442561,0.8088155,186.62,186.6,46.11128775]
[1722117442769,0.8088155,186.62,186.61,20.17]
[1722117443091,0.8088155,186.62,186.61,66.28130063]
[1722117446776,0.8088155,186.62,186.59,0.94100313]
[1722117446971,0.8088155,186.62,186.58,15.5304]
[1722117447171,0.8088155,186.62,186.59,20.0]
[1722117447693,0.8088155,186.62,186.58,15.5304]
[1722117447870,0.8088155,186.62,186.56,0.94100313]
[1722117448203,0.8088155,186.62,186.53,16.47252587]
[1722117449984,0.8088155,186.62,186.54,0.34]
[1722117450189,0.8088155,186.62,186.55,0.94256493]
[1722117450773,0.8088155,186.62,186.55,45.94256493]
[1722117450980,0.8088155,186.62,186.56,20.0]
[1722117455776,0.8088155,186.62,186.55,45.0]
[1722117455991,0.8088155,186.62,186.54,45.0]
[1722117456296,0.8088155,186.62,186.55,20.0]
[1722117456482,0.8088155,186.62,186.54,20.0]
[1722117456881,0.8088155,186.62,186.52,20.0]
[1722117457082,0.8088155,186.62,186.52,20.94296454]
[1722117457769,0.8088155,186.62,186.53,45.0]
[1722117457989,0.8088155,186.62,186.54,20.0]
[1722117458195,0.8088155,186.62,186.55,45.0]
[1722117458973,0.8088155,186.62,186.54,20.0]
[1722117459178,0.8088155,186.62,186.52,20.17]
[1722117459385,0.8088155,186.62,186.51,20.0]
[1722117460697,0.8088155,186.62,186.52,45.0]
[1722117460904,0.8088155,186.62,186.53,20.0]
[1722117462077,0.8088155,186.62,186.52,45.0]
[1722117462279,0.8088155,186.62,186.51,45.0]
[1722117463499,0.8088155,186.62,186.52,20.0]
[1722117465074,1.33998596,186.61,186.52,20.0]
[1722117465401,16.2768,186.6,186.52,20.0]
[1722117465576,16.2768,186.6,186.48,6.2528]
[1722117465778,16.2768,186.6,186.49,20.0]
[1722117466300,16.2768,186.6,186.47,20.0]
[1722117466681,16.2768,186.6,186.48,45.34]
[1722117466880,16.2768,186.6,186.49,20.0]
[1722117467395,6.2528,186.59,186.46,23.51323477]
[1722117467595,1.51039605,186.58,186.45,15.4392]
[1722117467996,0.17,186.58,186.45,16.38342646]
[1722117468924,0.17,186.58,186.46,45.0]
[1722117469409,7.59319851,186.59,186.46,45.0]
[1722117469582,6.2528,186.59,186.46,45.0]
[1722117469901,6.2528,186.5,186.36,15.4392]
[1722117470083,1.34093417,186.49,186.36,15.4392]
[1722117470283,1.34095228,186.48,186.36,15.4392]
[1722117470990,1.34095228,186.48,186.36,14.9392]
[1722117471190,7.59376686,186.5,186.36,14.9392]
[1722117471396,1.34096686,186.48,186.36,14.9392]
[1722117472405,6.2528,186.5,186.36,14.9392]
[1722117472607,6.2528,186.5,186.36,15.88479603]
[1722117472803,1.34096799,186.49,186.36,14.9392]
[1722117472987,1.34096863,186.48,186.37,0.34]
[1722117473596,1.34096863,186.48,186.37,65.34]
[1722117475103,7.59376801,186.5,186.37,65.34]
[1722117476289,7.59376801,186.5,186.37,65.0]
[1722117480415,7.59376801,186.5,186.37,45.0]
[1722117484405,6.2528,186.5,186.38,21.28568318]
[1722117484627,6.2528,186.5,186.39,45.0]
[1722117484794,6.2528,186.5,186.4,20.0]
[1722117485123,6.2528,186.5,186.41,45.0]
[1722117486991,6.2528,186.5,186.42,21.28464192]
[1722117487194,6.2528,186.5,186.43,45.94448969]
[1722117487396,6.2528,186.5,186.43,45.0]
[1722117488395,6.2528,186.5,186.44,20.0]
[1722117490600,6.2528,186.5,186.41,20.94460868]
[1722117490902,6.2528,186.5,186.42,45.0]
[1722117491223,6.2528,186.5,186.43,20.0]
[1722117492233,16.2768,186.51,186.44,0.94483797]
[1722117492604,16.2768,186.51,186.43,20.94481352]
[1722117493108,16.2768,186.51,186.43,20.0]
[1722117497012,16.2768,186.51,186.44,0.94475726]
[1722117497200,6.6239,186.54,186.45,1.28435971]
[1722117497399,6.6239,186.54,186.45,21.28435971]
[1722117497623,6.6239,186.54,186.46,45.0]
[1722117497824,6.6239,186.54,186.47,20.0]
[1722117498619,16.1239,186.56,186.46,45.94394209]
[1722117498818,16.1239,186.56,186.47,20.34]
[1722117499014,16.1239,186.56,186.48,45.0]
[1722117499523,16.1239,186.56,186.49,20.0]
[1722117501733,16.1239,186.56,186.43,0.94372843]
[1722117501919,16.1239,186.56,186.44,0.34]
[1722117502118,16.1239,186.56,186.44,20.34]
[1722117502318,16.1239,186.56,186.45,45.0]
[1722117502524,16.1239,186.56,186.46,20.17]
[1722117502710,16.1239,186.56,186.47,45.0]
[1722117503028,16.1239,186.56,186.46,20.0]
[1722117503233,1.34054607,186.55,186.41,0.94458101]
[1722117503419,1.34056142,186.54,186.4,6.98858101]
[1722117504327,1.34056142,186.54,186.39,38.3197]
[1722117504328,6.6239,186.53,186.39,15.7497]
[1722117504534,16.1239,186.51,186.34,46.69305552]
[1722117504718,1.3408991,186.5,186.34,46.69305552]
[1722117505035,1.3408991,186.5,186.35,0.94536667]
[1722117505940,1.3408991,186.5,186.35,0.94558415]
[1722117506232,1.3408991,186.5,186.36,0.94557791]
[1722117506426,1.3408991,186.5,186.37,0.34]
[1722117507319,1.3408991,186.5,186.37,45.34]
[1722117507637,1.3408991,186.5,186.38,20.0]
[1722117507825,1.3408991,186.5,186.39,45.0]
[1722117509251,16.1239,186.51,186.4,0.17]
[1722117509419,16.1239,186.51,186.4,1.28511158]
[1722117509617,16.1239,186.51,186.4,21.28511158]
[1722117509813,16.1239,186.51,186.41,45.0]
[1722117510009,16.1239,186.51,186.42,20.0]
[1722117510539,16.1239,186.51,186.41,45.0]
[1722117510730,16.1239,186.51,186.42,20.0]
[1722117513939,16.1239,186.51,186.43,0.94508459]
[1722117514141,16.1239,186.51,186.42,20.0]
[1722117515029,16.1239,186.51,186.38,0.94484092]
[1722117515225,16.1239,186.51,186.39,0.34]
[1722117515533,17.46469645,186.51,186.39,20.17]
[1722117515749,0.17,186.5,186.39,20.0]
[1722117517043,16.1239,186.51,186.4,0.94556697]
[1722117517253,16.1239,186.51,186.41,0.17]
[1722117518739,17.46459335,186.51,186.4,45.0]
[1722117519124,17.46459335,186.51,186.39,20.0]
[1722117519320,17.46459335,186.51,186.37,20.0]
[1722117519649,15.1999,186.48,186.31,6.261]
[1722117519821,1.34117876,186.47,186.31,6.261]
[1722117520028,1.34117876,186.47,186.31,7.20708308]
[1722117520326,6.2677,186.46,186.3,16.3018]
[1722117520647,15.1999,186.44,186.3,16.3018]
[1722117520842,1.34129578,186.43,186.3,16.3018]
[1722117521143,1.34131767,186.42,186.3,13.8018]
[1722117522031,1.34131767,186.42,186.3,14.74823405]
[1722117522341,1.34131767,186.42,186.31,45.34]
[1722117522845,1.34131767,186.42,186.32,20.0]
[1722117523055,1.34131968,186.43,186.33,45.0]
[1722117523226,1.34119857,186.43,186.33,45.0]
[1722117523427,15.1999,186.44,186.33,45.0]
[1722117523428,1.34120703,186.42,186.33,45.0]
[1722117523824,15.1999,186.44,186.33,45.94639493]
[1722117524033,15.1999,186.44,186.33,45.0]
[1722117525327,15.1999,186.44,186.33,45.9462851]
[1722117525847,15.1999,186.44,186.34,20.0]
[1722117526148,1.34105369,186.43,186.34,20.0]
[1722117527146,1.34105369,186.43,186.33,45.0]
[1722117527324,1.34105369,186.43,186.34,20.0]
[1722117527722,1.34124125,186.42,186.34,20.0]
[1722117530228,1.34125387,186.43,186.34,20.0]
[1722117530549,1.3412533,186.42,186.34,20.0]
[1722117530751,15.1999,186.44,186.34,20.0]
[1722117531453,1.341287,186.43,186.34,20.0]
[1722117531634,1.34128678,186.42,186.34,20.0]
[1722117532748,15.1999,186.44,186.34,20.0]
[1722117533256,16.54118482,186.44,186.34,20.0]
[1722117533629,15.1999,186.44,186.35,0.94635418]
[1722117533825,15.1999,186.44,186.36,0.94585117]
[1722117534031,15.1999,186.44,186.35,45.0]
[1722117536956,1.34114241,186.43,186.34,20.0]
[1722117537157,1.34114241,186.43,186.32,20.0]
[1722117537333,1.34114241,186.43,186.33,45.0]
[1722117537638,1.34114241,186.43,186.34,20.0]
[1722117538040,15.1999,186.44,186.34,20.0]
[1722117538246,15.1999,186.44,186.31,20.17]
[1722117538558,15.1999,186.44,186.32,45.94653132]
[1722117538753,15.1999,186.44,186.33,20.0]
[1722117539835,1.34135671,186.43,186.33,20.0]
[1722117540036,1.34135949,186.42,186.33,20.0]
[1722117541136,6.1279,186.42,186.33,20.0]
[1722117541342,1.34136578,186.41,186.29,20.0]
[1722117542440,1.34136578,186.41,186.3,45.17]
[1722117542631,1.34136578,186.41,186.31,20.0]
[1722117543460,6.1279,186.42,186.31,20.0]
[1722117543754,7.46936392,186.42,186.31,20.0]
[1722117545153,6.1279,186.42,186.31,20.0]
[1722117545352,6.1279,186.42,186.32,45.17]
[1722117545552,6.1279,186.42,186.32,45.34]
[1722117549462,6.1279,186.42,186.33,20.0]
[1722117550654,6.1279,186.42,186.33,20.94628534]
[1722117550864,6.1279,186.42,186.33,0.94628534]
[1722117551365,6.1279,186.42,186.33,20.94628534]
[1722117551566,6.1279,186.42,186.33,20.0]
[1722117556248,7.46930512,186.42,186.27,20.94629879]
[1722117556445,7.46930512,186.42,186.28,0.17]
[1722117557084,7.46930512,186.42,186.29,0.94699187]
[1722117557747,7.46930512,186.42,186.3,0.34]
[1722117558147,7.46930512,186.42,186.3,45.34]
[1722117558349,6.1279,186.42,186.31,20.0]
[1722117560463,6.1279,186.42,186.32,0.94663898]
[1722117560669,6.1279,186.42,186.32,45.94663898]
[1722117560979,6.1279,186.42,186.33,0.94631037]
[1722117562779,6.1279,186.42,186.32,45.0]
[1722117563262,6.1279,186.42,186.33,20.94631409]
[1722117563460,6.1279,186.42,186.34,45.0]
[1722117563669,6.1279,186.42,186.35,21.28571199]
[1722117563978,6.1279,186.42,186.36,45.0]
[1722117564276,6.1279,186.42,186.36,45.94577845]
[1722117564656,6.1279,186.42,186.36,45.0]
[1722117565351,6.1279,186.42,186.35,20.34]
[1722117565352,6.1279,186.42,186.35,20.0]
[1722117565565,6.1279,186.42,186.33,0.94575971]
[1722117565769,6.1279,186.42,186.33,45.94575971]
[1722117566265,6.1279,186.42,186.34,20.0]
[1722117569696,6.1279,186.42,186.35,45.0]
[1722117571384,15.1999,186.44,186.36,21.28590709]
[1722117571680,6.6295,186.48,186.37,45.0]
[1722117571867,6.6295,186.48,186.38,21.28505714]
[1722117572180,6.6295,186.48,186.39,45.0]
[1722117572396,6.6295,186.48,186.4,0.17]
[1722117573875,6.6295,186.48,186.4,1.11504929]
[1722117574183,16.4254,186.49,186.4,1.11504929]
[1722117574486,23.0549,186.53,186.41,0.17]
[1722117574663,23.0549,186.53,186.42,0.94425322]
[1722117574858,23.0549,186.53,186.43,1.28425021]
[1722117575064,23.0549,186.53,186.43,46.28425021]
[1722117575393,23.0549,186.53,186.44,20.0]
[1722117575561,23.0549,186.53,186.45,45.94414842]
[1722117575754,23.0549,186.53,186.46,0.94413659]
[1722117577472,23.0549,186.53,186.46,0.44413659]
[1722117577987,23.0549,186.53,186.45,45.0]
[1722117578779,23.0549,186.53,186.45,45.44423097]
[1722117578989,23.0549,186.53,186.45,45.0]
[1722117579774,1.34040017,186.52,186.43,0.34]
[1722117580463,1.34040017,186.52,186.39,0.44425165]
[1722117580666,16.4254,186.51,186.34,16.4699]
[1722117580870,1.34094226,186.5,186.34,16.4699]